[Event "*** Qualifier 4: Titled Tuesday 3|2 Blitz"]
[Site "Chess.com"]
[Date "2017.04.25"]
[Round "2"]
[White "Malev212"]
[Black "igorkovalenko"]
[Result "1/2-1/2"]
[WhiteElo "2440"]
[BlackElo "2651"]
[TimeControl "180+2"]
[EndTime "13:24:54 PDT"]
[Termination "Game drawn by agreement"]

1. e4 {[%clk 0:03:02]} 1... c5 {[%clk 0:02:57.6]} 2. Nf3 {[%clk 0:03:01.5]} 2...
e6 {[%clk 0:02:58.4]} 3. d4 {[%clk 0:02:59.5]} 3... cxd4 {[%clk 0:02:59.8]} 4.
Nxd4 {[%clk 0:03:00]} 4... Nc6 {[%clk 0:03:01.7]} 5. Nc3 {[%clk 0:02:59.9]} 5...
Qc7 {[%clk 0:03:02.5]} 6. g3 {[%clk 0:02:59]} 6... a6 {[%clk 0:03:00.9]} 7. Bg2
{[%clk 0:02:56.7]} 7... Nf6 {[%clk 0:03:02.4]} 8. O-O {[%clk 0:02:47.3]} 8...
Nxd4 {[%clk 0:03:03.6]} 9. Qxd4 {[%clk 0:02:47.3]} 9... Bc5 {[%clk 0:03:05.3]}
10. Bf4 {[%clk 0:02:20.2]} 10... d6 {[%clk 0:02:54.4]} 11. Qd2 {[%clk 0:02:16]}
11... Ng4 {[%clk 0:02:37.8]} 12. Rad1 {[%clk 0:01:53.5]} 12... Ne5 {[%clk
0:02:20.5]} 13. Na4 {[%clk 0:01:53.4]} 13... Ba7 {[%clk 0:01:27.4]} 14. Qxd6
{[%clk 0:01:52.4]} 14... Qxd6 {[%clk 0:01:27.6]} 15. Rxd6 {[%clk 0:01:52.9]}
15... Nc4 {[%clk 0:01:29.2]} 16. Rd3 {[%clk 0:01:34.8]} 16... b5 {[%clk
0:01:26.7]} 17. b3 {[%clk 0:01:27.2]} 17... e5 {[%clk 0:01:09.9]} 18. bxc4
{[%clk 0:01:26.8]} 18... exf4 {[%clk 0:01:09.8]} 19. e5 {[%clk 0:01:19.8]} 19...
Rb8 {[%clk 0:01:10.3]} 20. Bc6+ {[%clk 0:01:15.7]} 20... Ke7 {[%clk 0:01:10.6]}
21. cxb5 {[%clk 0:01:15.8]} 21... axb5 {[%clk 0:01:12.5]} 22. Nc3 {[%clk
0:01:16.7]} 22... Bf5 {[%clk 0:00:59.2]} 23. Nd5+ {[%clk 0:01:11]} 23... Kf8
{[%clk 0:00:59.3]} 24. Rf3 {[%clk 0:01:05]} 24... Bxc2 {[%clk 0:00:45]} 25. Rxf4
{[%clk 0:00:58.4]} 25... g5 {[%clk 0:00:45.7]} 26. Rf6 {[%clk 0:00:52.7]} 26...
Kg7 {[%clk 0:00:37.5]} 27. e6 {[%clk 0:00:39.9]} 27... fxe6 {[%clk 0:00:37.7]}
28. Rxe6 {[%clk 0:00:40.8]} 28... Bd4 {[%clk 0:00:30]} 29. Re7+ {[%clk
0:00:40.3]} 29... Kh6 {[%clk 0:00:31.1]} 30. Rfe1 {[%clk 0:00:32.6]} 30... Rhc8
{[%clk 0:00:30.3]} 31. R1e6+ {[%clk 0:00:26.5]} 31... Bg6 {[%clk 0:00:31.1]} 32.
Kg2 {[%clk 0:00:21.9]} 32... b4 {[%clk 0:00:31.9]} 33. f4 {[%clk 0:00:18.7]}
33... gxf4 {[%clk 0:00:27.5]} 34. Nxf4 {[%clk 0:00:17.8]} 34... Bc5 {[%clk
0:00:24.9]} 35. Rd7 {[%clk 0:00:15]} 35... Rxc6 {[%clk 0:00:25]} 36. Rxc6 {[%clk
0:00:14.4]} 36... Bf8 {[%clk 0:00:25]} 37. Nxg6 {[%clk 0:00:14.5]} 37... hxg6
{[%clk 0:00:26.1]} 38. Rd2 {[%clk 0:00:13.5]} 38... b3 {[%clk 0:00:27.3]} 39.
axb3 {[%clk 0:00:13.6]} 39... Rxb3 {[%clk 0:00:29.2]} 40. Re2 {[%clk 0:00:14.7]}
40... Rb7 {[%clk 0:00:27.6]} 41. h4 {[%clk 0:00:15.2]} 41... Kh7 {[%clk
0:00:28]} 42. Ree6 {[%clk 0:00:15.3]} 42... Rg7 {[%clk 0:00:28.5]} 43. Kh3
{[%clk 0:00:15.5]} 43... Bb4 {[%clk 0:00:28.2]} 44. Kg4 {[%clk 0:00:15.4]} 44...
Ba3 {[%clk 0:00:27.1]} 45. Re3 {[%clk 0:00:15.3]} 45... Bf8 {[%clk 0:00:27.2]}
46. Rec3 {[%clk 0:00:15.8]} 46... Rg8 {[%clk 0:00:19.7]} 47. Rc7+ {[%clk
0:00:16.1]} 47... Bg7 {[%clk 0:00:21.3]} 48. Rd7 {[%clk 0:00:16.3]} 48... Kh6
{[%clk 0:00:21.5]} 49. Rcc7 {[%clk 0:00:16.7]} 49... Kh7 {[%clk 0:00:20.2]} 50.
Kg5 {[%clk 0:00:17.1]} 50... Kh8 {[%clk 0:00:19.5]} 51. Kg4 {[%clk 0:00:14.7]}
51... Kh7 {[%clk 0:00:20.5]} 52. Rb7 {[%clk 0:00:14.7]} 52... Kh6 {[%clk
0:00:21.3]} 53. Rdc7 {[%clk 0:00:14.6]} 53... Kh7 {[%clk 0:00:22.2]} 54. Rc6
{[%clk 0:00:15.4]} 54... Rd8 {[%clk 0:00:18.9]} 55. Rcc7 {[%clk 0:00:15.1]}
55... Rg8 {[%clk 0:00:19.9]} 56. Kh3 {[%clk 0:00:15.3]} 56... Kh6 {[%clk
0:00:21]} 57. g4 {[%clk 0:00:16.2]} 57... Kh7 {[%clk 0:00:22.4]} 58. g5 {[%clk
0:00:16.9]} 58... Kh8 {[%clk 0:00:22.6]} 59. Kg4 {[%clk 0:00:18.1]} 59... Rd8
{[%clk 0:00:22.1]} 60. Kf3 {[%clk 0:00:15.1]} 60... Re8 {[%clk 0:00:18.2]} 61.
h5 {[%clk 0:00:15.5]} 61... Be5 {[%clk 0:00:16.1]} 62. Re7 {[%clk 0:00:14]}
62... Rf8+ {[%clk 0:00:17.7]} 63. Ke4 {[%clk 0:00:14.1]} 63... Bc3 {[%clk
0:00:17.8]} 64. hxg6 {[%clk 0:00:13.3]} 64... Kg8 {[%clk 0:00:18.7]} 65. Rec7
{[%clk 0:00:10.8]} 65... Ba1 {[%clk 0:00:19]} 66. g7 {[%clk 0:00:10.6]} 66...
Re8+ {[%clk 0:00:19.3]} 67. Re7 {[%clk 0:00:11.4]} 67... Rd8 {[%clk 0:00:19.1]}
68. Re6 {[%clk 0:00:10.7]} 68... Rc8 {[%clk 0:00:19.5]} 69. Rh6 {[%clk
0:00:11.1]} 69... Bxg7 {[%clk 0:00:19.9]} 70. Rg6 {[%clk 0:00:11.9]} 70... Re8+
{[%clk 0:00:20.4]} 71. Kf5 {[%clk 0:00:11.5]} 71... Kh8 {[%clk 0:00:22]} 72.
Rgb6 {[%clk 0:00:11.9]} 72... Kh7 {[%clk 0:00:22.2]} 73. Rh6+ {[%clk 0:00:09.9]}
73... Kg8 {[%clk 0:00:23.2]} 74. Rhb6 {[%clk 0:00:10.3]} 74... Kh7 {[%clk
0:00:24.5]} 75. Rb8 {[%clk 0:00:10.6]} 75... Re5+ {[%clk 0:00:25.2]} 76. Kf4
{[%clk 0:00:11.5]} 76... Re1 {[%clk 0:00:26.2]} 77. R6b7 {[%clk 0:00:09.6]}
77... Rf1+ {[%clk 0:00:27.6]} 78. Kg4 {[%clk 0:00:09.7]} 78... Rg1+ {[%clk
0:00:27.5]} 79. Kf5 {[%clk 0:00:11]} 79... Rf1+ {[%clk 0:00:29.1]} 80. Ke4
{[%clk 0:00:11.2]} 80... Re1+ {[%clk 0:00:30.6]} 81. Kf4 {[%clk 0:00:12.1]}
81... Rf1+ {[%clk 0:00:32]} 82. Ke3 {[%clk 0:00:12.2]} 82... Rg1 {[%clk
0:00:32.6]} 83. Kf4 {[%clk 0:00:11.9]} 83... Rf1+ {[%clk 0:00:33.9]} 84. Ke3
{[%clk 0:00:11.1]} 84... Rg1 {[%clk 0:00:35.3]} 85. Rb5 {[%clk 0:00:12]} 85...
Kg6 {[%clk 0:00:33.3]} 86. R8b6+ {[%clk 0:00:12.2]} 86... Kh5 {[%clk 0:00:34.7]}
87. Kf4 {[%clk 0:00:11.4]} 87... Rf1+ {[%clk 0:00:35.9]} 88. Kg3 {[%clk
0:00:11]} 88... Rg1+ {[%clk 0:00:37]} 89. Kf4 {[%clk 0:00:11.6]} 89... Rg4+
{[%clk 0:00:37.3]} 90. Kf3 {[%clk 0:00:11.3]} 90... Rxg5 {[%clk 0:00:38.9]}
1/2-1/2

[Event "*** Qualifier 4: Titled Tuesday 3|2 Blitz"]
[Site "Chess.com"]
[Date "2017.04.25"]
[Round "3"]
[White "IIIlllII1llIl"]
[Black "Konavets"]
[Result "0-1"]
[WhiteElo "2540"]
[BlackElo "2699"]
[TimeControl "180+2"]
[EndTime "13:27:20 PDT"]
[Termination "Konavets won by resignation"]

1. e4 {[%clk 0:03:02]} 1... e5 {[%clk 0:03:01]} 2. Nf3 {[%clk 0:03:02.4]} 2...
Nc6 {[%clk 0:03:02.7]} 3. d4 {[%clk 0:03:01.7]} 3... exd4 {[%clk 0:03:03.4]} 4.
Nxd4 {[%clk 0:03:03.6]} 4... Nf6 {[%clk 0:03:02.2]} 5. Nxc6 {[%clk 0:03:04]}
5... bxc6 {[%clk 0:03:04.1]} 6. e5 {[%clk 0:03:05.4]} 6... Qe7 {[%clk
0:03:05.7]} 7. Qe2 {[%clk 0:03:06.1]} 7... Nd5 {[%clk 0:03:07]} 8. Nd2 {[%clk
0:03:07.3]} 8... g6 {[%clk 0:02:54.9]} 9. Ne4 {[%clk 0:02:56.4]} 9... Bg7 {[%clk
0:02:53.5]} 10. c4 {[%clk 0:02:57.3]} 10... Ba6 {[%clk 0:02:49.8]} 11. Bg5
{[%clk 0:02:28.8]} 11... Qxe5 {[%clk 0:02:27.7]} 12. Bf6 {[%clk 0:02:27.9]}
12... Nxf6 {[%clk 0:02:25.6]} 13. Nxf6+ {[%clk 0:02:29.8]} 13... Bxf6 {[%clk
0:02:26.6]} 0-1

[Event "*** Qualifier 4: Titled Tuesday 3|2 Blitz"]
[Site "Chess.com"]
[Date "2017.04.25"]
[Round "3"]
[White "MorpheusPro"]
[Black "cailinchetty"]
[Result "1-0"]
[WhiteElo "2032"]
[BlackElo "1940"]
[TimeControl "180+2"]
[EndTime "13:29:05 PDT"]
[Termination "MorpheusPro won by resignation"]

1. e4 {[%clk 0:02:59.1]} 1... c5 {[%clk 0:03:01.5]} 2. Nf3 {[%clk 0:02:59.5]}
2... Nc6 {[%clk 0:03:02.9]} 3. Nc3 {[%clk 0:03:00]} 3... g6 {[%clk 0:03:03.5]}
4. Bc4 {[%clk 0:03:00.3]} 4... Bg7 {[%clk 0:03:04.8]} 5. O-O {[%clk 0:03:00.6]}
5... e6 {[%clk 0:03:06.3]} 6. Re1 {[%clk 0:03:00.3]} 6... d6 {[%clk 0:03:07.1]}
7. d3 {[%clk 0:02:59.4]} 7... Nge7 {[%clk 0:03:07.8]} 8. a3 {[%clk 0:02:59.3]}
8... a6 {[%clk 0:03:09.2]} 9. Ba2 {[%clk 0:02:59.7]} 9... Qc7 {[%clk 0:03:09.5]}
10. Bf4 {[%clk 0:02:59.5]} 10... b6 {[%clk 0:03:09]} 11. Qd2 {[%clk 0:02:59.8]}
11... Bb7 {[%clk 0:03:08.5]} 12. Bh6 {[%clk 0:02:59.9]} 12... O-O {[%clk
0:03:08.8]} 13. Qg5 {[%clk 0:02:54.7]} 13... Rfe8 {[%clk 0:02:55.9]} 14. Qh4
{[%clk 0:02:52.4]} 14... b5 {[%clk 0:02:52.1]} 15. Ng5 {[%clk 0:02:52.1]} 15...
Bh8 {[%clk 0:02:47]} 16. Bf8 {[%clk 0:02:31.8]} 16... Kxf8 {[%clk 0:02:37.6]}
17. Qxh7 {[%clk 0:02:25.7]} 17... Bg7 {[%clk 0:02:35.2]} 18. Bxe6 {[%clk
0:02:20.9]} 18... Ng8 {[%clk 0:02:29.6]} 19. Bxf7 {[%clk 0:02:16.4]} 19... Nf6
{[%clk 0:02:30.9]} 20. Qxg6 {[%clk 0:02:10.8]} 20... Re7 {[%clk 0:02:31.5]} 21.
Nd5 {[%clk 0:01:56.7]} 21... Rxf7 {[%clk 0:02:23.4]} 22. Nxc7 {[%clk 0:01:44.8]}
1-0

[Event "*** Qualifier 4: Titled Tuesday 3|2 Blitz"]
[Site "Chess.com"]
[Date "2017.04.25"]
[Round "3"]
[White "EgorGeroev"]
[Black "Ilja_Semjonovs"]
[Result "1-0"]
[WhiteElo "2473"]
[BlackElo "2247"]
[TimeControl "180+2"]
[EndTime "13:29:14 PDT"]
[Termination "EgorGeroev won by resignation"]

1. e4 {[%clk 0:02:58.6]} 1... c5 {[%clk 0:02:59.9]} 2. Nf3 {[%clk 0:02:59]} 2...
d6 {[%clk 0:03:01.2]} 3. d4 {[%clk 0:02:59.4]} 3... cxd4 {[%clk 0:03:02.5]} 4.
Nxd4 {[%clk 0:03:01.3]} 4... Nf6 {[%clk 0:03:03.4]} 5. Nc3 {[%clk 0:03:03]} 5...
a6 {[%clk 0:03:04.7]} 6. Nb3 {[%clk 0:03:04.7]} 6... e5 {[%clk 0:03:05]} 7. Bg5
{[%clk 0:03:04.7]} 7... Nbd7 {[%clk 0:03:02]} 8. a4 {[%clk 0:03:03.4]} 8... Be7
{[%clk 0:03:02.1]} 9. Bc4 {[%clk 0:02:58.8]} 9... O-O {[%clk 0:02:52.2]} 10. O-O
{[%clk 0:02:56.6]} 10... Nb6 {[%clk 0:02:41.6]} 11. Bxf6 {[%clk 0:02:53.8]}
11... Bxf6 {[%clk 0:02:41.1]} 12. Bd5 {[%clk 0:02:54.4]} 12... Qe7 {[%clk
0:01:44.2]} 13. a5 {[%clk 0:02:51.1]} 13... Nd7 {[%clk 0:01:45.1]} 14. Nd2
{[%clk 0:02:50.2]} 14... Rb8 {[%clk 0:01:35.5]} 15. Nc4 {[%clk 0:02:47.5]} 15...
Rd8 {[%clk 0:01:10.6]} 16. Nxd6 {[%clk 0:02:42.5]} 16... Nc5 {[%clk 0:01:03.2]}
17. Nxf7 {[%clk 0:02:39.3]} 17... Rxd5 {[%clk 0:00:56.4]} 18. Qxd5 {[%clk
0:02:41.2]} 18... Be6 {[%clk 0:00:56.7]} 19. Qd6 {[%clk 0:02:40.4]} 19... Bxf7
{[%clk 0:00:54.7]} 20. Qxb8+ {[%clk 0:02:40.8]} 1-0

[Event "*** Qualifier 4: Titled Tuesday 3|2 Blitz"]
[Site "Chess.com"]
[Date "2017.04.25"]
[Round "3"]
[White "indfraeng"]
[Black "FLchessplayer"]
[Result "1-0"]
[WhiteElo "1784"]
[BlackElo "2016"]
[TimeControl "180+2"]
[EndTime "13:30:01 PDT"]
[Termination "indfraeng won by resignation"]

1. d4 {[%clk 0:03:02]} 1... Nf6 {[%clk 0:00:37]} 2. c4 {[%clk 0:03:01]} 2... c5
{[%clk 0:00:37.8]} 3. d5 {[%clk 0:03:01.6]} 3... d6 {[%clk 0:00:39.2]} 4. Nc3
{[%clk 0:02:57]} 4... e6 {[%clk 0:00:38.3]} 5. e4 {[%clk 0:02:55.7]} 5... e5
{[%clk 0:00:39.4]} 6. f4 {[%clk 0:02:48.6]} 6... exf4 {[%clk 0:00:39.3]} 7. Bxf4
{[%clk 0:02:48.7]} 7... a6 {[%clk 0:00:40.6]} 8. Nf3 {[%clk 0:02:48.3]} 8...
Nbd7 {[%clk 0:00:41.7]} 9. Bd3 {[%clk 0:02:48.6]} 9... h6 {[%clk 0:00:41.6]} 10.
O-O {[%clk 0:02:48.8]} 10... Qe7 {[%clk 0:00:39.5]} 11. Re1 {[%clk 0:02:45.3]}
11... g5 {[%clk 0:00:39.1]} 12. e5 {[%clk 0:02:39.1]} 12... dxe5 {[%clk
0:00:39.7]} 13. Nxe5 {[%clk 0:02:37.1]} 13... gxf4 {[%clk 0:00:30.6]} 14. Nxd7
{[%clk 0:02:34.1]} 14... Bxd7 {[%clk 0:00:29.5]} 15. Rxe7+ {[%clk 0:02:31.6]}
15... Bxe7 {[%clk 0:00:29.9]} 16. Qe2 {[%clk 0:02:31.1]} 16... Kf8 {[%clk
0:00:30.4]} 17. Ne4 {[%clk 0:02:30.7]} 17... Nxe4 {[%clk 0:00:30.3]} 18. Qxe4
{[%clk 0:02:31.6]} 18... Re8 {[%clk 0:00:24.9]} 19. Qxf4 {[%clk 0:02:27.8]}
19... Bg5 {[%clk 0:00:25.6]} 20. Qd6+ {[%clk 0:02:27.9]} 20... Kg8 {[%clk
0:00:24.1]} 21. Qxd7 {[%clk 0:02:27.5]} 1-0

[Event "*** Qualifier 4: Titled Tuesday 3|2 Blitz"]
[Site "Chess.com"]
[Date "2017.04.25"]
[Round "3"]
[White "rubhani"]
[Black "igorkovalenko"]
[Result "1-0"]
[WhiteElo "2410"]
[BlackElo "2638"]
[TimeControl "180+2"]
[EndTime "13:30:04 PDT"]
[Termination "rubhani won by resignation"]

1. e4 {[%clk 0:02:54.9]} 1... e6 {[%clk 0:03:01.2]} 2. d4 {[%clk 0:02:55.2]}
2... d5 {[%clk 0:03:02.7]} 3. Nd2 {[%clk 0:02:56]} 3... Nf6 {[%clk 0:03:03.2]}
4. e5 {[%clk 0:02:57.1]} 4... Nfd7 {[%clk 0:03:04.5]} 5. Bd3 {[%clk 0:02:58.7]}
5... c5 {[%clk 0:03:06]} 6. c3 {[%clk 0:03:00.3]} 6... Nc6 {[%clk 0:03:07.8]} 7.
Ne2 {[%clk 0:03:01]} 7... cxd4 {[%clk 0:03:08.2]} 8. cxd4 {[%clk 0:03:02.9]}
8... f6 {[%clk 0:03:09.9]} 9. exf6 {[%clk 0:03:04.3]} 9... Qxf6 {[%clk
0:03:10.7]} 10. Nf3 {[%clk 0:03:04.5]} 10... Bd6 {[%clk 0:03:12.3]} 11. O-O
{[%clk 0:03:01.5]} 11... h6 {[%clk 0:03:13.5]} 12. Ng3 {[%clk 0:02:58.9]} 12...
O-O {[%clk 0:03:13.9]} 13. a3 {[%clk 0:02:54.7]} 13... Rf7 {[%clk 0:03:15.2]}
14. Nh5 {[%clk 0:02:52.6]} 14... Qe7 {[%clk 0:03:08]} 15. Re1 {[%clk 0:02:51.6]}
15... Nf8 {[%clk 0:03:07.8]} 16. Ne5 {[%clk 0:02:51.2]} 16... Nxe5 {[%clk
0:03:07.2]} 17. dxe5 {[%clk 0:02:52.1]} 17... Bc5 {[%clk 0:03:08.9]} 18. Be3
{[%clk 0:02:49.6]} 18... Bxe3 {[%clk 0:03:09.9]} 19. Rxe3 {[%clk 0:02:50.3]}
19... Bd7 {[%clk 0:03:08.7]} 20. Rg3 {[%clk 0:02:45]} 20... Rc8 {[%clk
0:03:08.1]} 21. Qd2 {[%clk 0:02:45]} 21... Qh4 {[%clk 0:03:03.3]} 22. Nf6+
{[%clk 0:02:23.3]} 22... Kh8 {[%clk 0:03:02.8]} 23. Rg4 {[%clk 0:02:18.6]} 23...
Qxg4 {[%clk 0:02:51.5]} 24. Nxg4 {[%clk 0:02:19.4]} 24... Be8 {[%clk 0:02:50.5]}
25. Rc1 {[%clk 0:02:19.1]} 25... Rfc7 {[%clk 0:02:51]} 26. Rxc7 {[%clk
0:02:18.5]} 26... Rxc7 {[%clk 0:02:52.9]} 27. h3 {[%clk 0:02:18.9]} 27... Kg8
{[%clk 0:02:53.9]} 28. Qe3 {[%clk 0:02:16.7]} 28... b6 {[%clk 0:02:54.7]} 29.
Qg3 {[%clk 0:02:14.9]} 29... Kh8 {[%clk 0:02:55.8]} 30. Qf4 {[%clk 0:02:10.5]}
30... Kg8 {[%clk 0:02:56.3]} 31. Ne3 {[%clk 0:02:00]} 31... Rc1+ {[%clk
0:02:53.9]} 32. Kh2 {[%clk 0:02:00.2]} 32... Rc7 {[%clk 0:02:55.8]} 33. Nc2
{[%clk 0:02:00.5]} 33... Bg6 {[%clk 0:02:51.7]} 34. Bxg6 {[%clk 0:01:55.3]}
34... Nxg6 {[%clk 0:02:53.6]} 35. Qg4 {[%clk 0:01:54.7]} 35... Nf8 {[%clk
0:02:46.7]} 36. Nd4 {[%clk 0:01:54.1]} 36... Kf7 {[%clk 0:02:48.2]} 37. f4
{[%clk 0:01:48.5]} 37... g6 {[%clk 0:02:49.4]} 38. h4 {[%clk 0:01:48]} 38... Rc5
{[%clk 0:02:49.7]} 39. h5 {[%clk 0:01:48.1]} 39... gxh5 {[%clk 0:02:50.2]} 40.
Qxh5+ {[%clk 0:01:49.2]} 40... Ke7 {[%clk 0:02:51.9]} 41. Qxh6 {[%clk
0:01:49.8]} 41... Rc4 {[%clk 0:02:53.6]} 42. Qg7+ {[%clk 0:01:50.7]} 42... Ke8
{[%clk 0:02:54.8]} 43. Nb5 {[%clk 0:01:51.3]} 43... Rxf4 {[%clk 0:02:56.1]} 44.
Nd6+ {[%clk 0:01:45.1]} 44... Kd8 {[%clk 0:02:57.4]} 45. Qg5+ {[%clk 0:01:46.1]}
1-0

[Event "*** Qualifier 4: Titled Tuesday 3|2 Blitz"]
[Site "Chess.com"]
[Date "2017.04.25"]
[Round "3"]
[White "hansen"]
[Black "NMJeevanK"]
[Result "1-0"]
[WhiteElo "2650"]
[BlackElo "2394"]
[TimeControl "180+2"]
[EndTime "13:30:58 PDT"]
[Termination "hansen won by checkmate"]

1. e4 {[%clk 0:03:02]} 1... e5 {[%clk 0:03:01.2]} 2. Nf3 {[%clk 0:03:03]} 2...
Nc6 {[%clk 0:03:02.8]} 3. Bb5 {[%clk 0:03:04.6]} 3... a6 {[%clk 0:03:04.2]} 4.
Ba4 {[%clk 0:03:05.5]} 4... Nf6 {[%clk 0:03:05.3]} 5. O-O {[%clk 0:03:06.5]}
5... Be7 {[%clk 0:03:05.8]} 6. Re1 {[%clk 0:03:07.7]} 6... b5 {[%clk 0:03:07.2]}
7. Bb3 {[%clk 0:03:08.3]} 7... d6 {[%clk 0:03:08.9]} 8. c3 {[%clk 0:03:09.5]}
8... O-O {[%clk 0:03:09.1]} 9. h3 {[%clk 0:03:11.2]} 9... Na5 {[%clk 0:03:10.2]}
10. Bc2 {[%clk 0:03:12.1]} 10... c5 {[%clk 0:03:11.9]} 11. d4 {[%clk 0:03:14]}
11... Qc7 {[%clk 0:03:13]} 12. Bd2 {[%clk 0:03:15.3]} 12... Nc4 {[%clk
0:03:12.2]} 13. Bc1 {[%clk 0:03:15.1]} 13... Ne8 {[%clk 0:03:08.1]} 14. b3
{[%clk 0:03:14.2]} 14... Nb6 {[%clk 0:03:08.5]} 15. Nbd2 {[%clk 0:03:15.3]}
15... Bb7 {[%clk 0:03:03.6]} 16. Nf1 {[%clk 0:03:15.8]} 16... Rc8 {[%clk
0:03:04.8]} 17. Ne3 {[%clk 0:03:16.1]} 17... cxd4 {[%clk 0:03:06]} 18. cxd4
{[%clk 0:03:17.2]} 18... Bf6 {[%clk 0:03:02.6]} 19. Bb2 {[%clk 0:03:17.8]} 19...
exd4 {[%clk 0:02:57.2]} 20. Nxd4 {[%clk 0:03:16.8]} 20... d5 {[%clk 0:02:55.5]}
21. Rc1 {[%clk 0:03:15.6]} 21... Qd8 {[%clk 0:02:53]} 22. e5 {[%clk 0:03:13.3]}
22... Bg5 {[%clk 0:02:43]} 23. Qh5 {[%clk 0:03:08.4]} 23... g6 {[%clk
0:02:43.3]} 24. Qf3 {[%clk 0:03:01.8]} 24... Ng7 {[%clk 0:02:36.1]} 25. Ng4
{[%clk 0:03:01.3]} 25... Bxc1 {[%clk 0:02:27.8]} 26. Bxc1 {[%clk 0:02:54]} 26...
Nd7 {[%clk 0:02:19.4]} 27. Nh6+ {[%clk 0:02:52.8]} 27... Kh8 {[%clk 0:02:20.1]}
28. Nxf7+ {[%clk 0:02:53.8]} 28... Rxf7 {[%clk 0:01:51.4]} 29. Qxf7 {[%clk
0:02:54]} 29... Rc7 {[%clk 0:01:35]} 30. Bh6 {[%clk 0:02:39.3]} 30... Nh5 {[%clk
0:01:18.2]} 31. Ne6 {[%clk 0:02:29.3]} 31... Qc8 {[%clk 0:00:09.5]} 32. Bg7+
{[%clk 0:02:28.3]} 32... Nxg7 {[%clk 0:00:09.8]} 33. Qxg7# {[%clk 0:02:30.2]}
1-0

[Event "*** Qualifier 4: Titled Tuesday 3|2 Blitz"]
[Site "Chess.com"]
[Date "2017.04.25"]
[Round "3"]
[White "Shivagami"]
[Black "silverback96"]
[Result "0-1"]
[WhiteElo "1933"]
[BlackElo "2045"]
[TimeControl "180+2"]
[EndTime "13:31:14 PDT"]
[Termination "silverback96 won by resignation"]

1. d4 {[%clk 0:03:02]} 1... Nf6 {[%clk 0:03:00.1]} 2. Bf4 {[%clk 0:03:01.7]}
2... c5 {[%clk 0:03:01.2]} 3. e3 {[%clk 0:03:00.5]} 3... e6 {[%clk 0:03:02.7]}
4. c3 {[%clk 0:02:55.2]} 4... d5 {[%clk 0:03:04.1]} 5. Nd2 {[%clk 0:02:52.7]}
5... Nc6 {[%clk 0:03:06]} 6. Ngf3 {[%clk 0:02:53.6]} 6... cxd4 {[%clk
0:03:07.9]} 7. exd4 {[%clk 0:02:52.7]} 7... Nh5 {[%clk 0:03:09.1]} 8. Be3 {[%clk
0:02:41.5]} 8... Bd6 {[%clk 0:03:09.3]} 9. Bd3 {[%clk 0:02:37.6]} 9... Nf4
{[%clk 0:03:08.6]} 10. Bxf4 {[%clk 0:02:33.3]} 10... Bxf4 {[%clk 0:03:10.5]} 11.
Nb3 {[%clk 0:02:33.1]} 11... O-O {[%clk 0:03:08.6]} 12. O-O {[%clk 0:02:34.3]}
12... e5 {[%clk 0:03:08.2]} 13. dxe5 {[%clk 0:02:31.7]} 13... Nxe5 {[%clk
0:03:10.1]} 14. Nxe5 {[%clk 0:02:32.3]} 14... Bxe5 {[%clk 0:03:12]} 15. Bxh7+
{[%clk 0:02:27]} 15... Kxh7 {[%clk 0:03:12.2]} 16. Qh5+ {[%clk 0:02:27.9]} 16...
Kg8 {[%clk 0:03:12.1]} 17. Qxe5 {[%clk 0:02:29.4]} 17... Re8 {[%clk 0:03:12.9]}
18. Qd4 {[%clk 0:02:29.3]} 18... Re2 {[%clk 0:03:10.5]} 19. Nd2 {[%clk
0:02:17.7]} 19... Qg5 {[%clk 0:03:07.9]} 20. Nf3 {[%clk 0:02:16.2]} 20... Qh5
{[%clk 0:03:07.2]} 21. b3 {[%clk 0:01:48.7]} 21... Bg4 {[%clk 0:03:07]} 22. Nd2
{[%clk 0:01:39.9]} 22... Qg5 {[%clk 0:03:06.2]} 23. f4 {[%clk 0:01:36.8]} 23...
Qg6 {[%clk 0:02:39.6]} 24. Qxd5 {[%clk 0:01:23.2]} 24... Be6 {[%clk 0:02:30.2]}
25. Qxb7 {[%clk 0:01:06.3]} 25... Rd8 {[%clk 0:02:30.9]} 26. f5 {[%clk 0:00:47]}
26... Bxf5 {[%clk 0:02:31.1]} 27. Nc4 {[%clk 0:00:45.7]} 27... Be4 {[%clk
0:02:31.1]} 28. Qxf7+ {[%clk 0:00:25.1]} 28... Qxf7 {[%clk 0:02:30.8]} 29. Rxf7
{[%clk 0:00:27]} 29... Kxf7 {[%clk 0:02:32.3]} 30. Ne5+ {[%clk 0:00:26.4]} 30...
Ke6 {[%clk 0:02:33.3]} 31. Nc4 {[%clk 0:00:26.8]} 31... Rxg2+ {[%clk 0:02:33.6]}
32. Kf1 {[%clk 0:00:24.6]} 32... Rf8+ {[%clk 0:02:35]} 33. Ke1 {[%clk
0:00:24.7]} 33... Bd3 {[%clk 0:02:36.5]} 34. Ne3 {[%clk 0:00:24.1]} 34... Rg1+
{[%clk 0:02:37.2]} 0-1

[Event "*** Qualifier 4: Titled Tuesday 3|2 Blitz"]
[Site "Chess.com"]
[Date "2017.04.25"]
[Round "3"]
[White "bugsbunny444"]
[Black "rasmussvane"]
[Result "0-1"]
[WhiteElo "2365"]
[BlackElo "2524"]
[TimeControl "180+2"]
[EndTime "13:31:26 PDT"]
[Termination "rasmussvane won by resignation"]

1. Nf3 {[%clk 0:03:02]} 1... d5 {[%clk 0:03:00.1]} 2. c4 {[%clk 0:03:01.9]} 2...
e6 {[%clk 0:02:59.6]} 3. g3 {[%clk 0:03:03.3]} 3... dxc4 {[%clk 0:02:59.9]} 4.
Bg2 {[%clk 0:02:57.2]} 4... a6 {[%clk 0:03:00.4]} 5. Qc2 {[%clk 0:02:41.6]} 5...
b5 {[%clk 0:02:55.4]} 6. Ne5 {[%clk 0:02:28.4]} 6... Ra7 {[%clk 0:02:53.1]} 7.
d3 {[%clk 0:02:28.9]} 7... cxd3 {[%clk 0:02:51.3]} 8. Nxd3 {[%clk 0:02:29.7]}
8... Bb7 {[%clk 0:02:50.2]} 9. O-O {[%clk 0:02:21.4]} 9... Nd7 {[%clk
0:02:43.8]} 10. Be3 {[%clk 0:01:51.4]} 10... Bxg2 {[%clk 0:02:44.2]} 11. Kxg2
{[%clk 0:01:52.1]} 11... c5 {[%clk 0:02:39]} 12. b4 {[%clk 0:01:45.2]} 12... Rc7
{[%clk 0:02:20.7]} 13. bxc5 {[%clk 0:01:16.1]} 13... Ngf6 {[%clk 0:02:21.4]} 14.
Rc1 {[%clk 0:00:58.7]} 14... Be7 {[%clk 0:01:54.7]} 15. Nd2 {[%clk 0:00:50.3]}
15... O-O {[%clk 0:01:53]} 16. Nb3 {[%clk 0:00:48.8]} 16... Qa8+ {[%clk
0:01:51.3]} 17. f3 {[%clk 0:00:47.5]} 17... a5 {[%clk 0:01:38.5]} 18. a4 {[%clk
0:00:37.8]} 18... b4 {[%clk 0:01:39.6]} 19. Nd4 {[%clk 0:00:39.2]} 19... Nd5
{[%clk 0:01:29.2]} 20. Bd2 {[%clk 0:00:26.2]} 20... Nxc5 {[%clk 0:01:24.8]} 21.
Nb5 {[%clk 0:00:24.4]} 21... Rcc8 {[%clk 0:01:21.9]} 22. e4 {[%clk 0:00:19.3]}
22... Nxe4 {[%clk 0:01:19]} 0-1